fUSD/lending_fUSD_20250120
["ID","MTS","AMOUNT","RATE_DAILY","PERIOD"]
[349643390,1737348639274,-500.0,0.00021187,2]
[349643391,1737348639283,-1183.35,0.00021187,2]
[349643392,1737348639292,-500.0,0.00021187,2]
[349643393,1737348639303,-500.0,0.00021187,2]
[349643394,1737348639313,-500.0,0.00021187,2]
[349643395,1737348639323,-952.2,0.00021187,2]
[349643396,1737348639332,-829.55,0.00021187,2]
[349643397,1737348639341,-500.0,0.00021187,2]
[349643398,1737348639351,-500.0,0.00021187,2]
[349643399,1737348639360,-2409.78,0.00021187,2]
[349643400,1737348639370,-1176.9,0.00021187,2]
[349643401,1737348639379,-634.47,0.00021187,2]
[349643402,1737348639389,-1360.04,0.00021187,2]
[349643403,1737348639398,-500.0,0.00021187,2]
[349643404,1737348639407,-521.81631365,0.00021187,2]
[349643405,1737348639416,-1681.50300277,0.00021187,2]
[349643406,1737348639704,-498.58699723,0.00021187,2]
[349643407,1737348639714,-59.90451978,0.00021187,2]
[349643408,1737348639725,-440.09548022,0.00021187,2]
[349643409,1737348639734,-471.36685878,0.00021187,2]
[349643410,1737348639743,-500.0,0.00021187,2]
[349643411,1737348639753,-2342.18,0.00021187,2]
[349643412,1737348639762,-500.0,0.00021187,2]
[349643413,1737348639771,-500.0,0.00021187,2]
[349643414,1737348639781,-4076.42,0.00021187,2]
[349643415,1737348639790,-505.29128251,0.00021187,2]
[349643416,1737348639800,-1417.94,0.00021187,2]
[349643417,1737348639809,-500.0,0.00021187,2]
[349643418,1737348639818,-502.85668816,0.00021187,2]
[349643419,1737348639827,-805.61,0.00021188,2]
[349643420,1737348639836,-500.0,0.00021188,2]
[349643421,1737348639845,-500.0,0.00021188,2]
[349643422,1737348639854,-500.0,0.00021188,2]
[349643423,1737348639863,-500.0,0.00021188,2]
[349643424,1737348639872,-500.0,0.00021188,2]
[349643425,1737348639882,-503.10539826,0.00021188,2]
[349643426,1737348639891,-500.0,0.00021188,2]
[349643427,1737348639900,-500.0,0.00021188,2]
[349643428,1737348639909,-500.0,0.00021188,2]
[349643429,1737348639919,-500.0,0.00021188,2]
[349643430,1737348639928,-874.29,0.00021188,2]
[349643431,1737348639941,-61.67543707,0.00021188,2]
[349643432,1737348639953,-438.32456293,0.00021188,2]
[349643433,1737348639963,-500.0,0.00021188,2]
[349643434,1737348639972,-500.0,0.00021188,2]
[349643435,1737348639981,-506.4735112,0.00021188,2]
[349643436,1737348639991,-78.75192587,0.00021188,2]
[349643437,1737348640003,-421.24807413,0.00021188,2]
[349643438,1737348640013,-107.14953577,0.00021188,2]
[349643439,1737348640029,-392.85046423,0.00021188,2]
[349643440,1737348640039,-158.082972,0.00021188,2]
[349643441,1737348640048,-142.50367208,0.00021188,2]
[349643442,1737348640234,-675.58976143,0.00021187,2]
[349643443,1737348640246,-2002.4825872,0.00021187,2]
[349643444,1737348640357,-5173.66765137,0.00021187,2]
[349643445,1737348640366,-535.50632792,0.00021188,2]
[349643446,1737348640376,-500.0,0.00021188,2]
[349643447,1737348640385,-500.0,0.00021188,2]
[349643448,1737348640395,-500.0,0.00021188,2]
[349643449,1737348640404,-760.29,0.00021188,2]
[349643450,1737348640414,-1014.27,0.00021188,2]
[349643451,1737348640423,-500.0,0.00021188,2]
[349643452,1737348640432,-737.85,0.00021188,2]
[349643453,1737348640443,-69.41602071,0.00021188,2]
[349643454,1737348640459,-371.09321204,0.00021188,2]
[349643466,1737348642612,-164.72614122,0.00021186,2]
[349643467,1737348643148,-335.27385878,0.00021186,2]
[349643468,1737348643159,-500.0,0.00021187,2]
[349643469,1737348643169,-59.49076725,0.00021188,2]
[349643470,1737348643178,-500.0,0.00021188,2]
[349643471,1737348643188,-1770.15,0.00021188,2]
[349643472,1737348643198,-3.39537397,0.00021188,2]
[349643473,1737348643315,-682.54462603,0.00021188,2]
[349643474,1737348643324,-973.05,0.00021188,2]
[349643475,1737348643334,-500.0,0.00021188,2]
[349643476,1737348643345,-500.0,0.00021188,2]
[349643477,1737348643355,-1138.29,0.00021188,2]
[349643478,1737348643364,-891.97,0.00021188,2]
[349643479,1737348643374,-753.41,0.00021188,2]
[349643480,1737348643383,-832.93,0.00021188,2]
[349643481,1737348643394,-305.94724316,0.00021188,2]
[349643482,1737348643405,-194.05275684,0.00021188,2]
[349643483,1737348643415,-905.36,0.00021188,2]
[349643484,1737348643425,-500.0,0.00021188,2]
[349643485,1737348643435,-507.4,0.00021188,2]
[349643486,1737348643446,-264.00512168,0.00021188,2]
[349643487,1737348643455,-1373.3,0.00021188,2]
[349643488,1737348643466,-500.0,0.00021188,2]
[349643489,1737348643476,-635.76,0.00021188,2]
[349643490,1737348643486,-500.0,0.00021188,2]
[349643491,1737348643495,-500.0,0.00021188,2]
[349643492,1737348643505,-574.91,0.00021188,2]
[349643493,1737348643515,-914.01,0.00021188,2]
[349643494,1737348643524,-590.26076034,0.00021188,2]
[349643495,1737348643534,-500.0,0.00021188,2]
[349643496,1737348643544,-738.93,0.00021188,2]
[349643497,1737348643553,-1324.44,0.00021188,2]
[349643498,1737348643565,-500.0,0.00021188,2]
[349643499,1737348643575,-617.17,0.00021188,2]
[349643500,1737348643584,-500.0,0.00021188,2]
[349643501,1737348643594,-503.6,0.00021188,2]
[349643502,1737348643603,-500.0,0.00021188,2]
[349643503,1737348643617,-500.0,0.00021188,2]
[349643504,1737348643627,-693.02,0.00021188,2]
[349643505,1737348643637,-500.0,0.00021188,2]
[349643506,1737348643648,-500.0,0.00021188,2]
[349643507,1737348643658,-500.0,0.00021188,2]
[349643508,1737348643668,-525.92443844,0.00021188,2]
[349643509,1737348643678,-500.0,0.00021188,2]
[349643510,1737348643690,-500.0,0.00021188,2]
[349643511,1737348643699,-500.0,0.00021188,2]
[349643512,1737348643710,-371.59036027,0.00021188,2]
[349643513,1737348643720,-500.0,0.00021188,2]
[349643514,1737348643729,-500.0,0.00021188,2]
[349643515,1737348643739,-271.15385731,0.00021188,2]
[349643516,1737348643749,-500.0,0.00021188,2]
[349643517,1737348643759,-500.0,0.00021188,2]
[349643518,1737348643769,-371.53090884,0.00021188,2]
[349643519,1737348643782,-1175.42909116,0.00021188,2]
[349643520,1737348643792,-500.0,0.00021188,2]
[349643521,1737348643802,-1871.73,0.00021188,2]
[349643522,1737348643811,-2104.01,0.00021188,2]
[349643523,1737348643821,-500.0,0.00021188,2]
[349643524,1737348643831,-500.0,0.00021188,2]
[349643525,1737348643842,-906.38,0.00021188,2]
[349643526,1737348643852,-583.26,0.00021188,2]
[349643527,1737348643862,-500.0,0.00021188,2]
[349643528,1737348643872,-889.98,0.00021188,2]
[349643529,1737348643881,-500.0,0.00021188,2]
[349643530,1737348643892,-749.75,0.00021188,2]
[349643531,1737348643902,-619.39,0.00021188,2]
[349643532,1737348643912,-1409.62,0.00021188,2]
[349643533,1737348643922,-1150.69,0.00021188,2]
[349643534,1737348643931,-503.08020912,0.00021188,2]
[349643535,1737348643944,-500.0,0.00021188,2]
[349643536,1737348643956,-1396.97,0.00021188,2]
[349643537,1737348643966,-1509.73,0.00021188,2]
[349643538,1737348643976,-500.0,0.00021188,2]
[349643539,1737348643986,-858.38,0.00021188,2]
[349643540,1737348643996,-500.0,0.00021188,2]
[349643541,1737348644006,-781.84,0.00021188,2]
[349643542,1737348644016,-798.15,0.00021188,2]
[349643543,1737348644026,-500.0,0.00021188,2]
[349643544,1737348644036,-516.21243224,0.00021188,2]
[349643545,1737348644047,-500.0,0.00021188,2]
[349643546,1737348644057,-1458.37,0.00021188,2]
[349643547,1737348644068,-637.17,0.00021188,2]
[349643548,1737348644078,-434.34828257,0.00021188,2]
[349643549,1737348644096,-2394.81280384,0.00021188,2]
[349643550,1737348644108,-1282.69891359,0.00021188,2]
[349643551,1737348644123,-705.46,0.00021188,2]
[349643552,1737348644133,-512.22690672,0.00021188,2]
[349643553,1737348644143,-1902.72,0.00021188,2]
[349643554,1737348644153,-1222.88,0.00021188,2]
[349643555,1737348644163,-870.92,0.00021188,2]
[349643556,1737348644172,-500.0,0.00021188,2]
[349643557,1737348644182,-2425.66,0.00021188,2]
[349643558,1737348644194,-500.0,0.00021188,2]
[349643559,1737348644204,-3339.49,0.00021188,2]
[349643560,1737348644214,-582.3,0.00021188,2]
[349643561,1737348644227,-1187.91,0.00021188,2]
[349643562,1737348644237,-528.76169656,0.00021188,2]
[349643563,1737348644247,-654.06,0.00021188,2]
[349643564,1737348644256,-1587.64,0.00021188,2]
[349643565,1737348644267,-500.0,0.00021188,2]
[349643566,1737348644276,-778.53,0.00021188,2]
[349643567,1737348644286,-505.12822742,0.00021188,2]
[349643568,1737348644297,-1329.44,0.00021188,2]
[349643569,1737348644307,-507.4631291,0.00021188,2]
[349643570,1737348644316,-814.42,0.00021188,2]
[349643571,1737348644326,-611.24,0.00021188,2]
[349643572,1737348644336,-500.0,0.00021188,2]
[349643573,1737348644346,-5059.93,0.00021188,2]
[349643574,1737348644356,-2122.89,0.00021188,2]
[349643575,1737348644365,-595.4,0.00021188,2]
[349643576,1737348644375,-1085.21,0.00021188,2]
[349643577,1737348644384,-500.0,0.00021188,2]
[349643578,1737348644394,-500.0,0.00021188,2]
[349643579,1737348644404,-570.6,0.00021188,2]
[349643580,1737348644415,-558.61,0.00021188,2]
[349643581,1737348644425,-667.65,0.00021188,2]
[349643582,1737348644435,-500.0,0.00021188,2]
[349643583,1737348644449,-500.0,0.00021188,2]
[349643584,1737348644459,-2365.12728,0.0002125,2]
[349643585,1737348644469,-229.71141178,0.00021268,2]
[349643586,1737348644479,-152.0,0.0002134,3]
[349643587,1737348644488,-500.0,0.00021356,2]
[349643588,1737348644498,-229.71141178,0.00021358,2]
[349643589,1737348644508,-284.1309475,0.00021363,2]
[349643590,1737348644518,-772.97,0.00021427,2]
[349643591,1737348644528,-772.97,0.00021427,2]
[349643592,1737348644537,-771.74,0.00021427,2]
[349643593,1737348644547,-229.71141178,0.00021448,2]
[349643594,1737348644557,-178.16255008,0.00021454,2]
[349643595,1737348644567,-34013.73225065,0.0002146,2]
[349643599,1737348645544,-250.00187611,0.00021186,2]
[349643600,1737348645555,-2222.81560454,0.0002146,2]
[349643601,1737348645566,-2302.05221787,0.0002146,2]
[349643602,1737348645587,-529.38,0.0002146,2]
[349643603,1737348645599,-434.22145291,0.0002146,2]
[349643604,1737348645611,-1425.2362751,0.0002146,2]
[349643605,1737348645623,-2077.47440006,0.0002146,2]
[349643606,1737348645641,-11168.8559869,0.0002146,2]
[349643607,1737348645698,-367.54118,0.00021187,2]
[349643608,1737348645710,-270.22882,0.00021187,2]
[349643609,1737348645720,-647.91009935,0.0002146,2]
[349643610,1737348645808,-351.60761088,0.00021187,2]
[349643615,1737348682691,273.51196571,0.00019164,2]
[349643616,1737348682713,226.48803429,0.00019164,2]
[349643617,1737348826283,154.81,0.00010137,2]
[349643619,1737348847913,183.44,0.00022,120]
[349643620,1737348858415,5232.16741996,0.00022,120]
[349643625,1737349538133,-165.25,0.00016484,2]
[349643626,1737349538156,-658.81,0.00017875,2]
[349643627,1737349538178,-154.81,0.00018065,2]
[349643628,1737349538200,-1052.218,0.00019064,2]
[349643629,1737349538223,-300.0,0.00019163,2]
[349643630,1737349538245,-4523.51535274,0.00019164,2]
[349643631,1737349628093,-300.0,0.00019163,2]
[349643632,1737349628114,-912.05002805,0.00019164,2]
[349643633,1737349634102,-157.5004018,0.00019164,2]
[349643634,1737349752317,-300.0,0.00019163,2]
[349643635,1737349752342,-6022.85808,0.00019164,2]
[349643636,1737349760118,-8866.34613741,0.00019164,2]
[349643642,1737349831734,-1000.0,0.00019691,2]
[349643643,1737349831744,-490.81530084,0.00019825,2]
[349643644,1737349831754,-202.79,0.00019925,2]
[349643645,1737349831763,-202.63,0.00019954,2]
[349643646,1737349831773,-165.11,0.00019976,2]
[349643647,1737349831782,-23900.0,0.00020002,2]
[349643648,1737349831792,-375.65,0.00020055,2]
[349643649,1737349831804,-658.81,0.00020139,2]
[349643650,1737349831814,-150.44,0.00020232,2]
[349643651,1737349831823,-181.59,0.0002031,2]
[349643652,1737349831834,-610.68,0.00020359,30]
[349643653,1737349831844,-300.0,0.00020366,2]
[349643654,1737349831855,-250.0,0.00020414,2]
[349643655,1737349831864,-250.0,0.00020527,2]
[349643656,1737349831874,-4363.1,0.00020593,2]
[349643657,1737349831883,-169.52,0.00020648,2]
[349643658,1737349831892,-1198.03599969,0.00020873,2]
[349643659,1737349832132,-1198.03599969,0.00020889,2]
[349643660,1737349832142,-1198.03599969,0.0002092,2]
[349643661,1737349832151,-1198.03599969,0.00020925,2]
[349643662,1737349832161,-1198.03599969,0.00020937,2]
[349643663,1737349832172,-151.39161812,0.0002098,2]
[349643664,1737349832182,-163.0,0.00021,14]
[349643665,1737349832191,-163.19,0.00021,14]
[349643666,1737349832200,-1539.52,0.00021041,2]
[349643667,1737349832209,-153.14,0.0002107,2]
[349643668,1737349832219,-153.14,0.0002107,2]
[349643669,1737349832228,-153.14,0.0002107,2]
[349643670,1737349832237,-153.14,0.0002107,2]
[349643671,1737349832246,-153.14,0.0002107,2]
[349643672,1737349832256,-1719.01,0.00021079,2]
[349643673,1737349832265,-1502.96,0.00021079,2]
[349643674,1737349832274,-1257.02,0.00021079,2]
[349643675,1737349832284,-500.0,0.00021079,2]
[349643676,1737349832293,-2127.33,0.00021079,2]
[349643677,1737349832303,-2426.51,0.00021079,2]
[349643678,1737349832312,-2469.46,0.00021079,2]
[349643679,1737349832322,-500.0,0.00021079,2]
[349643680,1737349832331,-737.67,0.00021079,2]
[349643681,1737349832341,-3333.36,0.00021079,2]
[349643682,1737349832350,-1611.27,0.00021079,2]
[349643683,1737349832360,-513.83,0.00021079,2]
[349643684,1737349832369,-4053.07,0.00021079,2]
[349643685,1737349832379,-1932.68,0.00021079,2]
[349643686,1737349832388,-1690.86,0.00021079,2]
[349643687,1737349832398,-5079.08,0.00021079,2]
[349643688,1737349832407,-2066.65,0.00021079,2]
[349643689,1737349832417,-998.71,0.00021079,2]
[349643690,1737349832427,-626.16,0.00021079,2]
[349643691,1737349832436,-640.37,0.00021079,2]
[349643692,1737349832445,-865.5,0.00021079,2]
[349643693,1737349832454,-500.0,0.00021079,2]
[349643694,1737349832463,-2017.74,0.00021079,2]
[349643695,1737349832472,-500.0,0.00021079,2]
[349643696,1737349832482,-5961.0,0.00021079,2]
[349643697,1737349832491,-1778.29,0.00021079,2]
[349643698,1737349832501,-500.0,0.00021079,2]
[349643699,1737349832510,-1110.17,0.00021079,2]
[349643700,1737349832520,-14117.10913573,0.0002108,2]
[349643701,1737349832536,-107909.99999806,0.0002108,2]
[349643702,1737349832547,-30283.2240808,0.0002108,2]
[349643703,1737349832556,-445384.66907637,0.0002108,2]
[349643704,1737349832566,-494080.75660949,0.0002108,2]
[349643705,1737349832584,-2389.59415575,0.0002108,2]
[349643706,1737349832614,-261.80667875,0.0002108,2]
[349643709,1737349837730,-500.0,0.00021079,2]
[349643710,1737349837745,-261.62259484,0.00021079,2]
[349643711,1737349837756,-407.576676,0.00021079,2]
[349643712,1737349837855,-2441.74072916,0.00021079,2]
[349643713,1737349837865,-2452.48752575,0.0002108,2]
[349643714,1737349837877,-51240.0,0.0002108,2]
[349643715,1737349837889,-5512.8111807,0.0002108,2]
[349643716,1737349837901,-12419.04811999,0.0002108,2]
[349643728,1737349839800,-324.52008867,0.00021079,2]
[349643729,1737349839855,-175.81667387,0.00021079,2]
[349643730,1737349839864,-11083.98544613,0.0002108,2]
[349643731,1737349840073,-2771.37769747,0.0002108,2]
[349643732,1737349840088,-1146.47499857,0.0002108,2]
[349643733,1737349840290,-1023.995729,0.0002108,2]
[349643734,1737349840302,-1133.05,0.0002108,2]
[349643735,1737349842703,-601.64,0.00021079,2]
[349643736,1737349842714,-500.0,0.00021079,2]
[349643737,1737349842723,-9903.31586047,0.0002108,2]
[349643738,1737349842735,-406.560008,0.0002108,2]
[349643749,1737349845687,-488.389273,0.0002108,2]
[349643750,1737349845701,-1260.87249125,0.0002108,2]
[349643751,1737349845798,-1785.28735792,0.0002108,2]
[349643752,1737349845812,-2432.2000001,0.0002108,2]
[349643753,1737349845854,-862.68684106,0.0002108,2]
[349643754,1737349845954,-773.11660317,0.0002108,2]
[349643755,1737349845974,-8655.66699426,0.0002108,2]
[349643760,1737349865879,1570.4108,0.000171,5]
[349643761,1737349865900,1333.30766259,0.000171,5]
[349643762,1737349865922,1521.4206,0.000171,5]
[349643763,1737349865945,1130.86093741,0.000171,5]
[349643766,1737349941104,157.91,0.00010137,2]
[349643767,1737349941567,157.91,0.00016813,2]
[349643775,1737350474767,213.7,0.00012,2]
[349643778,1737350601330,1094.0,0.00012,6]
[349643785,1737350840134,-1360.7517779,0.00018,3]
[349643786,1737350846110,-759.94060045,0.00018,3]
[349643787,1737350851097,-187.35560717,0.00018,3]
[349643788,1737350874764,1714.38349584,0.0001,2]
[349643789,1737350878359,27976.34701102,0.0001,2]
[349643792,1737350906557,153.39,0.00010137,2]
[349643799,1737350947121,-20679.73586597,0.00018,3]
[349643800,1737350947144,-592.92,0.00018387,2]
[349643801,1737350953113,-500.0,0.00019164,2]
[349643806,1737351031905,-250.0,0.0001993,2]
[349643808,1737351031916,-250.0,0.00019998,2]
[349643809,1737351031925,-472.88242673,0.0002,2]
[349643810,1737351031966,-866.00201138,0.0002,2]
[349643811,1737351032296,-8153.86330751,0.0002,2]
[349643812,1737351032308,-300.0,0.0002011,2]
[349643813,1737351032319,-167.68,0.00020111,2]
[349643814,1737351032331,-15050.54,0.00020158,2]
[349643815,1737351032341,-1000.0,0.00020272,2]
[349643816,1737351032353,-551.04,0.00020342,2]
[349643817,1737351032363,-406.85,0.00020353,2]
[349643818,1737351032372,-164.29,0.00020364,2]
[349643819,1737351032382,-250.0,0.00020478,2]
[349643820,1737351032391,-182.13,0.00020497,2]
[349643821,1737351032401,-592.92,0.00020651,2]
[349643822,1737351032410,-622.7,0.00020711,30]
[349643823,1737351032420,-437.63,0.00020778,2]
[349643824,1737351032429,-200.0,0.00020795,2]
[349643825,1737351032439,-200.0,0.00020809,2]
[349643826,1737351032448,-210.69951198,0.00020852,2]
[349643827,1737351032458,-210.69951198,0.00020863,2]
[349643828,1737351032467,-200.0,0.00020878,2]
[349643829,1737351032476,-210.69951198,0.00020885,2]
[349643830,1737351032486,-200.0,0.00020889,2]
[349643831,1737351032495,-295.0,0.00020891,2]
[349643832,1737351032505,-210.69951198,0.00020908,2]
[349643833,1737351032514,-210.69951198,0.00020917,2]
[349643834,1737351032524,-172.0,0.00020944,2]
[349643835,1737351032533,-154.68818902,0.00020979,2]
[349643836,1737351032543,-753.93504095,0.00021,2]
[349643837,1737351032552,-1299.45894292,0.00021,2]
[349643838,1737351032561,-700.41938356,0.00021001,2]
[349643839,1737351032570,-284.1309476,0.00021032,2]
[349643840,1737351032580,-153.14,0.0002107,2]
[349643841,1737351032589,-150.0,0.00021077,2]
[349643842,1737351032600,-841.775,0.00021078,2]
[349643843,1737351032610,-500.0,0.00021078,2]
[349643844,1737351032620,-508.02660484,0.00021078,2]
[349643845,1737351032629,-514.71578378,0.00021078,2]
[349643846,1737351032638,-503.03798398,0.00021078,2]
[349643847,1737351032648,-531.81468188,0.00021078,2]
[349643848,1737351032657,-522.74851412,0.00021078,2]
[349643849,1737351032666,-523.87697902,0.00021078,2]
[349643850,1737351032675,-1016.45,0.00021078,2]
[349643851,1737351032684,-500.0,0.00021078,2]
[349643852,1737351032698,-500.0,0.00021078,2]
[349643853,1737351032707,-500.0,0.00021078,2]
[349643854,1737351032716,-500.0,0.00021078,2]
[349643855,1737351032726,-500.0,0.00021078,2]
[349643856,1737351032735,-667.74,0.00021078,2]
[349643857,1737351032744,-661.35,0.00021078,2]
[349643858,1737351032753,-512.38,0.00021078,2]
[349643859,1737351032762,-1461.71,0.00021078,2]
[349643860,1737351032772,-500.0,0.00021078,2]
[349643861,1737351032781,-531.8,0.00021078,2]
[349643862,1737351032790,-553.32137429,0.00021078,2]
[349643863,1737351032800,-500.0,0.00021078,2]
[349643864,1737351032809,-500.0,0.00021078,2]
[349643865,1737351032818,-1285.06,0.00021078,2]
[349643866,1737351032828,-1269.19,0.00021078,2]
[349643867,1737351032837,-500.0,0.00021078,2]
[349643868,1737351032848,-1160.03,0.00021078,2]
[349643869,1737351032857,-1149.93,0.00021078,2]
[349643870,1737351032867,-799.89,0.00021078,2]
[349643871,1737351032876,-500.0,0.00021078,2]
[349643872,1737351032886,-1476.49,0.00021078,2]
[349643873,1737351032895,-850.27,0.00021078,2]
[349643874,1737351032905,-4137.84,0.00021078,2]
[349643875,1737351032915,-5804.72,0.00021078,2]
[349643876,1737351032924,-1957.9,0.00021078,2]
[349643877,1737351032934,-2136.77,0.00021078,2]
[349643878,1737351032947,-2103.629442,0.00021078,2]
[349643879,1737351032956,-406.31276985,0.00021078,2]
[349643880,1737351032965,-621.38,0.00021078,2]
[349643881,1737351032975,-500.0,0.00021078,2]
[349643882,1737351032984,-154.764776,0.00021078,2]
[349643883,1737351032994,-500.0,0.00021078,2]
[349643884,1737351033003,-500.0,0.00021078,2]
[349643885,1737351033013,-162.29852,0.00021078,2]
[349643886,1737351033023,-500.0,0.00021078,2]
[349643887,1737351033032,-1319.78,0.00021078,2]
[349643888,1737351033042,-500.0,0.00021078,2]
[349643889,1737351033052,-2813.11,0.00021078,2]
[349643890,1737351033061,-796.281893,0.00021078,2]
[349643891,1737351033071,-500.0,0.00021078,2]
[349643892,1737351033081,-500.0,0.00021078,2]
[349643893,1737351033090,-500.0,0.00021078,2]
[349643894,1737351033102,-865.28,0.00021078,2]
[349643895,1737351033112,-1129.28,0.00021078,2]
[349643896,1737351033122,-2283.24,0.00021078,2]
[349643897,1737351033132,-1262.12,0.00021078,2]
[349643898,1737351033141,-500.0,0.00021078,2]
[349643899,1737351033151,-1130.02,0.00021078,2]
[349643900,1737351033163,-2038.69,0.00021078,2]
[349643901,1737351033172,-1647.38,0.00021078,2]
[349643902,1737351033182,-1942.07,0.00021078,2]
[349643903,1737351033192,-647.02,0.00021078,2]
[349643904,1737351033201,-500.0,0.00021078,2]
[349643905,1737351033216,-900.21,0.00021078,2]
[349643906,1737351033226,-2366.57,0.00021078,2]
[349643907,1737351033236,-2410.62,0.00021078,2]
[349643908,1737351033246,-1204.64,0.00021078,2]
[349643909,1737351033256,-768.76,0.00021078,2]
[349643910,1737351033266,-3194.47,0.00021078,2]
[349643911,1737351033276,-2325.41,0.00021078,2]
[349643912,1737351033286,-500.0,0.00021078,2]
[349643913,1737351033295,-4086.17,0.00021078,2]
[349643914,1737351033305,-500.0,0.00021078,2]
[349643915,1737351033315,-1384.35,0.00021078,2]
[349643916,1737351033325,-500.0,0.00021078,2]
[349643917,1737351033334,-1852.15,0.00021078,2]
[349643918,1737351033344,-4666.76,0.00021078,2]
[349643919,1737351033359,-720.14,0.00021078,2]
[349643920,1737351033369,-3241.02,0.00021078,2]
[349643921,1737351033378,-500.0,0.00021078,2]
[349643922,1737351033388,-4867.45,0.00021078,2]
[349643923,1737351033399,-706.93,0.00021078,2]
[349643924,1737351033409,-1544.13,0.00021078,2]
[349643925,1737351033419,-500.0,0.00021078,2]
[349643926,1737351033429,-1203.35,0.00021078,2]
[349643927,1737351033438,-2662.9,0.00021078,2]
[349643928,1737351033448,-3884.19,0.00021078,2]
[349643929,1737351033457,-600.07,0.00021078,2]
[349643930,1737351033467,-1620.41,0.00021078,2]
[349643931,1737351033476,-6769.57,0.00021078,2]
[349643932,1737351033486,-500.0,0.00021078,2]
[349643933,1737351033496,-737.21,0.00021078,2]
[349643934,1737351033505,-500.0,0.00021078,2]
[349643935,1737351033515,-1933.67,0.00021078,2]
[349643936,1737351033525,-1980.54,0.00021078,2]
[349643937,1737351033535,-500.0,0.00021078,2]
[349643938,1737351033544,-500.0,0.00021078,2]
[349643939,1737351033553,-500.0,0.00021078,2]
[349643940,1737351033563,-1063.91,0.00021078,2]
[349643941,1737351033572,-1000.52,0.00021078,2]
[349643942,1737351033582,-500.0,0.00021078,2]
[349643943,1737351033592,-1801.44,0.00021078,2]
[349643944,1737351033604,-2981.32,0.00021078,2]
[349643945,1737351033614,-2309.37,0.00021078,2]
[349643946,1737351033623,-841.75,0.00021078,2]
[349643947,1737351033633,-641.53,0.00021078,2]
[349643948,1737351033643,-500.0,0.00021078,2]
[349643949,1737351033653,-223.05158973,0.00021079,2]
[349643950,1737351033663,-500.0,0.00021079,2]
[349643951,1737351033673,-500.0,0.00021079,2]
[349643952,1737351033683,-503.6085769,0.00021079,2]
[349643953,1737351033692,-357.15118505,0.00021079,2]
[349643954,1737351033702,-500.0,0.00021079,2]
[349643955,1737351033712,-500.0,0.00021079,2]
[349643956,1737351033721,-515.55711945,0.00021079,2]
[349643957,1737351033731,-500.0,0.00021079,2]
[349643958,1737351033741,-500.0,0.00021079,2]
[349643959,1737351033750,-264.05381495,0.00021079,2]
[349643960,1737351033760,-527.47229328,0.00021079,2]
[349643961,1737351033770,-322.50070724,0.00021079,2]
[349643962,1737351033780,-500.0,0.00021079,2]
[349643963,1737351033789,-663.09,0.00021079,2]
[349643964,1737351033799,-500.0,0.00021079,2]
[349643965,1737351033808,-488.32144201,0.00021079,2]
[349643966,1737351033818,-500.0,0.00021079,2]
[349643967,1737351033827,-500.0,0.00021079,2]
[349643968,1737351033837,-200.0,0.00021079,2]
[349643969,1737351033849,-658.93,0.00021079,2]
[349643970,1737351033859,-500.0,0.00021079,2]
[349643971,1737351033868,-500.0,0.00021079,2]
[349643972,1737351033878,-236.77569386,0.00021079,2]
[349643973,1737351033887,-523.79,0.00021079,2]
[349643974,1737351033897,-845.67,0.00021079,2]